[Event "Betsys MČR v online bleskovém šachu 2021"]
[Site "Chess.com"]
[Date "2021.04.17"]
[Round "2"]
[White "VeceraP1973"]
[Black "masterofbuzkashi"]
[Result "0-1"]
[WhiteElo "1912"]
[BlackElo "2269"]
[TimeControl "180+1"]
[EndTime "9:16:04 PDT"]
[Termination "Uživatel masterofbuzkashi zvítězil po vzdání soupeře"]

1. e4 {[%clk 0:03:00.9]} 1... c5 {[%clk 0:03:00]} 2. Nf3 {[%clk 0:02:59.9]} 2...
Nc6 {[%clk 0:03:00.2]} 3. d4 {[%clk 0:02:58]} 3... cxd4 {[%clk 0:03:01.1]} 4.
Nxd4 {[%clk 0:02:57]} 4... Nf6 {[%clk 0:03:01.7]} 5. Nc3 {[%clk 0:02:56.1]} 5...
g6 {[%clk 0:03:01.1]} 6. Nxc6 {[%clk 0:02:55]} 6... bxc6 {[%clk 0:03:00.6]} 7.
e5 {[%clk 0:02:54.5]} 7... Ng8 {[%clk 0:03:00.7]} 8. f4 {[%clk 0:02:53.8]} 8...
Bg7 {[%clk 0:03:01.3]} 9. Bd3 {[%clk 0:02:52.9]} 9... Nh6 {[%clk 0:03:00.5]} 10.
O-O {[%clk 0:02:51.9]} 10... O-O {[%clk 0:03:00.6]} 11. Bd2 {[%clk 0:02:46.7]}
11... d5 {[%clk 0:02:59.7]} 12. a3 {[%clk 0:02:39.4]} 12... c5 {[%clk
0:02:56.1]} 13. b4 {[%clk 0:02:36.1]} 13... c4 {[%clk 0:02:55.7]} 14. Be2 {[%clk
0:02:34.6]} 14... Bb7 {[%clk 0:02:53.3]} 15. Bf3 {[%clk 0:02:34]} 15... Nf5
{[%clk 0:02:49.3]} 16. Kh1 {[%clk 0:02:25.3]} 16... e6 {[%clk 0:02:45.5]} 17.
Nb5 {[%clk 0:02:23.8]} 17... a6 {[%clk 0:02:41]} 18. Nc3 {[%clk 0:02:09]} 18...
Rb8 {[%clk 0:02:39.2]} 19. Na4 {[%clk 0:02:00.1]} 19... Qh4 {[%clk 0:02:34.9]}
20. Qe1 {[%clk 0:01:54.1]} 20... Qe7 {[%clk 0:02:31]} 21. Nc5 {[%clk 0:01:52.4]}
21... Bc8 {[%clk 0:02:18.8]} 22. c3 {[%clk 0:01:51.2]} 22... Rd8 {[%clk
0:02:17]} 23. Be3 {[%clk 0:01:47.7]} 23... d4 {[%clk 0:02:16.1]} 24. Bxd4 {[%clk
0:01:46.4]} 24... Nxd4 {[%clk 0:02:15.4]} 25. cxd4 {[%clk 0:01:46]} 25... Rxd4
{[%clk 0:02:15.2]} 26. Qe3 {[%clk 0:01:43.4]} 26... Rd8 {[%clk 0:02:08.9]} 27.
Rac1 {[%clk 0:01:41.7]} 27... a5 {[%clk 0:02:04.9]} 28. Rxc4 {[%clk 0:01:40.6]}
28... axb4 {[%clk 0:02:04.6]} 29. axb4 {[%clk 0:01:40.2]} 29... Bf8 {[%clk
0:02:01.5]} 30. Rfc1 {[%clk 0:01:38.4]} 30... Bd7 {[%clk 0:01:55.2]} 31. Ne4
{[%clk 0:01:37.4]} 31... Bb5 {[%clk 0:01:50.9]} 32. Nf6+ {[%clk 0:01:36.4]}
32... Kh8 {[%clk 0:01:45.6]} 33. Rc7 {[%clk 0:01:36.2]} 33... Qxb4 {[%clk
0:01:40]} 34. Rxf7 {[%clk 0:01:26.3]} 34... Bg7 {[%clk 0:01:34.9]} 35. h4 {[%clk
0:01:16.3]} 35... Rbc8 {[%clk 0:01:24.5]} 36. Rxc8 {[%clk 0:01:13.5]} 36... Rxc8
{[%clk 0:01:16.2]} 37. Qa7 {[%clk 0:01:12.5]} 37... Qe1+ {[%clk 0:01:11.7]} 0-1

[Event "Betsys MČR v online bleskovém šachu 2021"]
[Site "Chess.com"]
[Date "2021.04.17"]
[Round "2"]
[White "FMD-MP"]
[Black "svTomas"]
[Result "0-1"]
[WhiteElo "1776"]
[BlackElo "1413"]
[TimeControl "180+1"]
[EndTime "9:16:07 PDT"]
[Termination "Uživatel svTomas zvítězil po vzdání soupeře"]

1. c4 {[%clk 0:03:00.9]} 1... Nf6 {[%clk 0:02:59.5]} 2. Nc3 {[%clk 0:03:00.2]}
2... e5 {[%clk 0:02:58.6]} 3. g3 {[%clk 0:02:59.7]} 3... Bc5 {[%clk 0:02:58.3]}
4. Bg2 {[%clk 0:02:59.5]} 4... c6 {[%clk 0:02:54.4]} 5. d3 {[%clk 0:02:58.3]}
5... O-O {[%clk 0:02:45]} 6. Nf3 {[%clk 0:02:58.2]} 6... Bd4 {[%clk 0:02:38.9]}
7. O-O {[%clk 0:02:53.6]} 7... Re8 {[%clk 0:02:34.2]} 8. e3 {[%clk 0:02:46.6]}
8... Bxc3 {[%clk 0:02:33.9]} 9. bxc3 {[%clk 0:02:46.3]} 9... d5 {[%clk
0:02:34.8]} 10. cxd5 {[%clk 0:02:43.9]} 10... cxd5 {[%clk 0:02:34]} 11. Qb3
{[%clk 0:02:35.9]} 11... e4 {[%clk 0:02:17]} 12. Nd4 {[%clk 0:02:18.8]} 12...
exd3 {[%clk 0:01:50.2]} 13. c4 {[%clk 0:02:00.7]} 13... dxc4 {[%clk 0:01:36]}
14. Qxc4 {[%clk 0:02:00.4]} 14... Nc6 {[%clk 0:01:33.6]} 15. Nxc6 {[%clk
0:01:55.3]} 15... bxc6 {[%clk 0:01:29]} 16. Bxc6 {[%clk 0:01:54.5]} 16... Be6
{[%clk 0:01:21.4]} 17. Qa4 {[%clk 0:01:46]} 17... Bd7 {[%clk 0:01:18]} 18. Bb2
{[%clk 0:01:33.5]} 18... Bxc6 {[%clk 0:01:16.4]} 19. Qxc6 {[%clk 0:01:32.4]}
19... Rc8 {[%clk 0:01:08.4]} 20. Qxf6 {[%clk 0:01:23.9]} 20... gxf6 {[%clk
0:01:06.1]} 21. Rfd1 {[%clk 0:01:15.5]} 21... Rc2 {[%clk 0:01:05.2]} 22. Bd4
{[%clk 0:01:14.3]} 22... Qd5 {[%clk 0:00:47.7]} 23. a4 {[%clk 0:01:11.8]} 23...
Qf3 {[%clk 0:00:45.3]} 24. Rf1 {[%clk 0:01:02.5]} 24... h5 {[%clk 0:00:44.6]}
25. Ra3 {[%clk 0:00:58]} 25... h4 {[%clk 0:00:43.4]} 26. Rxd3 {[%clk 0:00:57.2]}
26... h3 {[%clk 0:00:42.3]} 0-1

[Event "Betsys MČR v online bleskovém šachu 2021"]
[Site "Chess.com"]
[Date "2021.04.17"]
[Round "2"]
[White "jarda1955"]
[Black "Hroch-hroch"]
[Result "1-0"]
[WhiteElo "1999"]
[BlackElo "2275"]
[TimeControl "180+1"]
[EndTime "9:16:08 PDT"]
[Termination "Uživatel jarda1955 zvítězil po vzdání soupeře"]

1. d4 {[%clk 0:03:00.9]} 1... d5 {[%clk 0:02:56.5]} 2. c4 {[%clk 0:03:00]} 2...
e6 {[%clk 0:02:55.8]} 3. Nc3 {[%clk 0:02:59.7]} 3... Nf6 {[%clk 0:02:54.6]} 4.
Bg5 {[%clk 0:02:59.3]} 4... Be7 {[%clk 0:02:53.4]} 5. e3 {[%clk 0:02:59.3]} 5...
O-O {[%clk 0:02:48.8]} 6. Nf3 {[%clk 0:02:58.7]} 6... h6 {[%clk 0:02:48.8]} 7.
Bh4 {[%clk 0:02:57.4]} 7... Ne4 {[%clk 0:02:48.7]} 8. Bxe7 {[%clk 0:02:56.7]}
8... Qxe7 {[%clk 0:02:47.7]} 9. Rc1 {[%clk 0:02:56.3]} 9... c6 {[%clk
0:02:41.9]} 10. Bd3 {[%clk 0:02:54.5]} 10... f5 {[%clk 0:02:39.2]} 11. O-O
{[%clk 0:02:53.6]} 11... Nd7 {[%clk 0:02:37.8]} 12. Ne2 {[%clk 0:02:51.6]} 12...
Ndf6 {[%clk 0:02:23.7]} 13. Ne5 {[%clk 0:02:48.9]} 13... Bd7 {[%clk 0:02:20]}
14. Ng6 {[%clk 0:02:47.6]} 14... Qf7 {[%clk 0:02:19.6]} 15. Nxf8 {[%clk
0:02:47.1]} 15... Rxf8 {[%clk 0:02:17.4]} 16. f3 {[%clk 0:02:46.3]} 16... Nd6
{[%clk 0:02:14.3]} 17. cxd5 {[%clk 0:02:36.1]} 17... exd5 {[%clk 0:02:12.7]} 18.
Re1 {[%clk 0:02:30.8]} 18... Qe8 {[%clk 0:01:44.8]} 19. Ng3 {[%clk 0:02:29.5]}
19... g6 {[%clk 0:01:42.1]} 20. Qc2 {[%clk 0:02:26.2]} 20... Qf7 {[%clk
0:01:34.3]} 21. Re2 {[%clk 0:02:23.6]} 21... h5 {[%clk 0:01:31.4]} 22. e4 {[%clk
0:02:09.1]} 22... fxe4 {[%clk 0:01:22.8]} 23. fxe4 {[%clk 0:02:08.7]} 23... dxe4
{[%clk 0:01:19.7]} 24. Nxe4 {[%clk 0:02:07.5]} 24... Nfxe4 {[%clk 0:01:09.7]}
25. Bxe4 {[%clk 0:02:06.2]} 25... Nxe4 {[%clk 0:01:09.2]} 26. Qxe4 {[%clk
0:02:03.8]} 26... Bf5 {[%clk 0:01:07]} 27. Qf4 {[%clk 0:01:53.6]} 27... Qxa2
{[%clk 0:01:03.1]} 28. Rf1 {[%clk 0:01:51.1]} 28... Qc4 {[%clk 0:00:58.4]} 29.
Re7 {[%clk 0:01:44.5]} 29... Rd8 {[%clk 0:00:45.8]} 30. Rd1 {[%clk 0:01:27.8]}
30... c5 {[%clk 0:00:32.8]} 31. Qe5 {[%clk 0:01:23.2]} 1-0

[Event "Betsys MČR v online bleskovém šachu 2021"]
[Site "Chess.com"]
[Date "2021.04.17"]
[Round "2"]
[White "Adam20032007"]
[Black "sharpi5135"]
[Result "1-0"]
[WhiteElo "1589"]
[BlackElo "781"]
[TimeControl "180+1"]
[EndTime "9:16:08 PDT"]
[Termination "Uživatel Adam20032007 zvítězil po vzdání soupeře"]

1. d4 {[%clk 0:03:00.9]} 1... c6 {[%clk 0:02:57.5]} 2. Nf3 {[%clk 0:03:00.3]}
2... d6 {[%clk 0:02:55.2]} 3. e3 {[%clk 0:02:58.4]} 3... e6 {[%clk 0:02:52.2]}
4. Bd3 {[%clk 0:02:57.8]} 4... Be7 {[%clk 0:02:49.9]} 5. e4 {[%clk 0:02:55.4]}
5... Nf6 {[%clk 0:02:46.3]} 6. O-O {[%clk 0:02:54.8]} 6... O-O {[%clk
0:02:43.5]} 7. c3 {[%clk 0:02:48.9]} 7... c5 {[%clk 0:02:36.7]} 8. Bg5 {[%clk
0:02:41.9]} 8... cxd4 {[%clk 0:02:28.8]} 9. cxd4 {[%clk 0:02:41.7]} 9... Nh5
{[%clk 0:02:24.2]} 10. Bxe7 {[%clk 0:02:40.9]} 10... Qxe7 {[%clk 0:02:22.4]} 11.
Nbd2 {[%clk 0:02:38.7]} 11... Nf4 {[%clk 0:02:20.9]} 12. Bb1 {[%clk 0:02:37.3]}
12... e5 {[%clk 0:02:12.3]} 13. dxe5 {[%clk 0:02:35]} 13... dxe5 {[%clk
0:02:08.7]} 14. Nc4 {[%clk 0:02:28.6]} 14... Be6 {[%clk 0:02:00.9]} 15. Ncxe5
{[%clk 0:02:22]} 15... Bg4 {[%clk 0:01:45.8]} 16. Nxg4 {[%clk 0:02:20.4]} 16...
Qg5 {[%clk 0:01:41.4]} 17. h3 {[%clk 0:02:01.9]} 17... Na6 {[%clk 0:01:35.9]}
18. Qd2 {[%clk 0:01:53.6]} 18... Ne6 {[%clk 0:01:16.7]} 19. Qxg5 {[%clk
0:01:52.8]} 19... Nxg5 {[%clk 0:01:15.8]} 20. Nxg5 {[%clk 0:01:52.9]} 20... Rad8
{[%clk 0:01:11.3]} 21. e5 {[%clk 0:01:52.2]} 21... Rd2 {[%clk 0:01:08.6]} 22.
Bxh7+ {[%clk 0:01:49.2]} 22... Kh8 {[%clk 0:01:06.3]} 23. Rad1 {[%clk
0:01:44.4]} 23... Rxd1 {[%clk 0:01:03.2]} 24. Rxd1 {[%clk 0:01:44]} 24... g6
{[%clk 0:01:02.6]} 25. Nf6 {[%clk 0:01:40.6]} 25... Nc5 {[%clk 0:00:49.4]} 26.
Nd7 {[%clk 0:01:17]} 26... Rd8 {[%clk 0:00:40.6]} 27. Nxf7+ {[%clk 0:01:16.5]}
27... Kxh7 {[%clk 0:00:30]} 28. Nxd8 {[%clk 0:01:16.3]} 28... Ne4 {[%clk
0:00:27]} 29. Nxb7 {[%clk 0:01:12.6]} 1-0

[Event "Betsys MČR v online bleskovém šachu 2021"]
[Site "Chess.com"]
[Date "2021.04.17"]
[Round "2"]
[White "dzerenyss"]
[Black "Danyjel"]
[Result "0-1"]
[WhiteElo "1164"]
[BlackElo "1713"]
[TimeControl "180+1"]
[EndTime "9:16:09 PDT"]
[Termination "Uživatel Danyjel zvítězil na čas"]

1. e4 {[%clk 0:02:57.5]} 1... e5 {[%clk 0:03:00]} 2. Nf3 {[%clk 0:02:56.6]} 2...
Nc6 {[%clk 0:03:00]} 3. d4 {[%clk 0:02:55.8]} 3... exd4 {[%clk 0:02:59.7]} 4.
Nxd4 {[%clk 0:02:55.4]} 4... Bc5 {[%clk 0:03:00.2]} 5. Nb3 {[%clk 0:02:51.8]}
5... Bb6 {[%clk 0:02:59.6]} 6. Bb5 {[%clk 0:02:48.4]} 6... d6 {[%clk 0:02:56.9]}
7. Nc3 {[%clk 0:02:34.3]} 7... Nf6 {[%clk 0:02:52]} 8. Bg5 {[%clk 0:02:28.1]}
8... h6 {[%clk 0:02:49.7]} 9. Bh4 {[%clk 0:02:25.3]} 9... g5 {[%clk 0:02:48.1]}
10. Bg3 {[%clk 0:02:23]} 10... Bd7 {[%clk 0:02:46]} 11. Qe2 {[%clk 0:02:09.1]}
11... Qe7 {[%clk 0:02:43.5]} 12. O-O-O {[%clk 0:02:01.2]} 12... O-O-O {[%clk
0:02:22.7]} 13. Rhe1 {[%clk 0:01:57.6]} 13... a6 {[%clk 0:02:02.9]} 14. Kb1
{[%clk 0:01:52.6]} 14... Kb8 {[%clk 0:01:58.7]} 15. e5 {[%clk 0:01:39.2]} 15...
dxe5 {[%clk 0:01:55]} 16. Bxe5 {[%clk 0:01:30.3]} 16... axb5 {[%clk 0:01:52.5]}
17. Bxf6 {[%clk 0:01:15.9]} 17... Qxf6 {[%clk 0:01:51.4]} 18. Nxb5 {[%clk
0:00:58.8]} 18... Qxf2 {[%clk 0:01:43.2]} 19. Qxf2 {[%clk 0:00:35.8]} 19... Bxf2
{[%clk 0:01:42.3]} 20. Rf1 {[%clk 0:00:33.7]} 20... Bb6 {[%clk 0:01:36.4]} 21.
Rxf7 {[%clk 0:00:31]} 21... Be6 {[%clk 0:01:34.9]} 22. Rff1 {[%clk 0:00:27.4]}
22... Rxd1+ {[%clk 0:01:32.6]} 23. Rxd1 {[%clk 0:00:25.2]} 23... Bxb3 {[%clk
0:01:32.6]} 24. cxb3 {[%clk 0:00:23]} 24... Rd8 {[%clk 0:01:33.1]} 25. Rc1
{[%clk 0:00:18.6]} 25... Nd4 {[%clk 0:01:29.9]} 26. Nxd4 {[%clk 0:00:15.5]}
26... Rxd4 {[%clk 0:01:29.1]} 27. a4 {[%clk 0:00:09.4]} 27... Rd2 {[%clk
0:01:28.8]} 28. Rg1 {[%clk 0:00:03.6]} 28... Bxg1 {[%clk 0:01:27.5]} 0-1

[Event "Betsys MČR v online bleskovém šachu 2021"]
[Site "Chess.com"]
[Date "2021.04.17"]
[Round "2"]
[White "Trickov"]
[Black "Richarlito"]
[Result "1-0"]
[WhiteElo "2387"]
[BlackElo "2004"]
[TimeControl "180+1"]
[EndTime "9:16:14 PDT"]
[Termination "Uživatel Trickov zvítězil po vzdání soupeře"]

1. d4 {[%clk 0:02:57.5]} 1... d5 {[%clk 0:02:59.7]} 2. Nf3 {[%clk 0:02:56.8]}
2... Nf6 {[%clk 0:02:58.9]} 3. c4 {[%clk 0:02:57]} 3... c6 {[%clk 0:02:58.8]} 4.
Nc3 {[%clk 0:02:56.7]} 4... e6 {[%clk 0:02:58.8]} 5. g3 {[%clk 0:02:56.2]} 5...
Nbd7 {[%clk 0:02:58]} 6. Bg2 {[%clk 0:02:56.5]} 6... Be7 {[%clk 0:02:52.1]} 7.
b3 {[%clk 0:02:55.5]} 7... O-O {[%clk 0:02:51.8]} 8. Qc2 {[%clk 0:02:55.4]} 8...
b6 {[%clk 0:02:48.4]} 9. O-O {[%clk 0:02:54.6]} 9... Bb7 {[%clk 0:02:48.4]} 10.
Rd1 {[%clk 0:02:54.2]} 10... Rc8 {[%clk 0:02:48.4]} 11. e4 {[%clk 0:02:54.4]}
11... dxe4 {[%clk 0:02:47.7]} 12. Nxe4 {[%clk 0:02:54.1]} 12... Nxe4 {[%clk
0:02:46.7]} 13. Qxe4 {[%clk 0:02:54.2]} 13... Nf6 {[%clk 0:02:46.9]} 14. Qe2
{[%clk 0:02:54.1]} 14... Qc7 {[%clk 0:02:38.1]} 15. Bf4 {[%clk 0:02:53]} 15...
Bd6 {[%clk 0:02:36.9]} 16. Bxd6 {[%clk 0:02:46]} 16... Qxd6 {[%clk 0:02:36.1]}
17. Ne5 {[%clk 0:02:42.1]} 17... Rfd8 {[%clk 0:02:32.8]} 18. Rac1 {[%clk
0:02:35.2]} 18... Nd7 {[%clk 0:02:19.2]} 19. c5 {[%clk 0:02:18.4]} 19... Qe7
{[%clk 0:02:01.7]} 20. cxb6 {[%clk 0:01:41]} 20... Nxe5 {[%clk 0:01:52.3]} 21.
dxe5 {[%clk 0:01:27.3]} 21... Rxd1+ {[%clk 0:01:51.4]} 22. Rxd1 {[%clk
0:01:12.8]} 22... axb6 {[%clk 0:01:50.5]} 23. Rd6 {[%clk 0:01:13.1]} 23... h6
{[%clk 0:01:26.7]} 24. Qd3 {[%clk 0:01:10.4]} 24... Ba8 {[%clk 0:01:13.6]} 25.
Rd7 {[%clk 0:01:04.4]} 25... Qc5 {[%clk 0:01:04.6]} 26. Rd8+ {[%clk 0:00:53.6]}
26... Rxd8 {[%clk 0:00:58.3]} 27. Qxd8+ {[%clk 0:00:53.5]} 27... Qf8 {[%clk
0:00:59.2]} 28. Qxb6 {[%clk 0:00:53.6]} 28... Qc8 {[%clk 0:00:55.1]} 29. Qa7
{[%clk 0:00:48.4]} 29... Kh7 {[%clk 0:00:48.3]} 30. Qxf7 {[%clk 0:00:44.7]}
30... Qd8 {[%clk 0:00:45.6]} 31. Be4+ {[%clk 0:00:43.1]} 1-0

[Event "Betsys MČR v online bleskovém šachu 2021"]
[Site "Chess.com"]
[Date "2021.04.17"]
[Round "2"]
[White "masodj"]
[Black "Qb1xh8"]
[Result "0-1"]
[WhiteElo "1735"]
[BlackElo "2144"]
[TimeControl "180+1"]
[EndTime "9:16:16 PDT"]
[Termination "Uživatel Qb1xh8 zvítězil matem"]

1. e4 {[%clk 0:03:00.9]} 1... c5 {[%clk 0:02:57.9]} 2. d4 {[%clk 0:02:52.8]}
2... cxd4 {[%clk 0:02:57.4]} 3. c3 {[%clk 0:02:52.6]} 3... d3 {[%clk 0:02:54.9]}
4. Bxd3 {[%clk 0:02:52.2]} 4... d6 {[%clk 0:02:55.2]} 5. c4 {[%clk 0:02:52.3]}
5... Nf6 {[%clk 0:02:54.9]} 6. Nf3 {[%clk 0:02:51.2]} 6... g6 {[%clk 0:02:52.1]}
7. h3 {[%clk 0:02:48.7]} 7... Bg7 {[%clk 0:02:51.9]} 8. Nc3 {[%clk 0:02:48.6]}
8... O-O {[%clk 0:02:51]} 9. O-O {[%clk 0:02:48.4]} 9... b6 {[%clk 0:02:49.4]}
10. Be3 {[%clk 0:02:45]} 10... Bb7 {[%clk 0:02:49.4]} 11. a3 {[%clk 0:02:42.3]}
11... Nbd7 {[%clk 0:02:49.3]} 12. Rc1 {[%clk 0:02:41.6]} 12... a6 {[%clk
0:02:49]} 13. b3 {[%clk 0:02:37]} 13... Rc8 {[%clk 0:02:48.7]} 14. Nd5 {[%clk
0:02:34]} 14... Nc5 {[%clk 0:02:43.4]} 15. b4 {[%clk 0:02:28]} 15... Ncd7 {[%clk
0:02:10.2]} 16. Qe2 {[%clk 0:02:13.7]} 16... b5 {[%clk 0:01:49.7]} 17. Nxf6+
{[%clk 0:02:07.4]} 17... Nxf6 {[%clk 0:01:50.6]} 18. cxb5 {[%clk 0:02:04]} 18...
Rxc1 {[%clk 0:01:47]} 19. Rxc1 {[%clk 0:02:00.1]} 19... axb5 {[%clk 0:01:46.6]}
20. Bd4 {[%clk 0:01:47.5]} 20... e5 {[%clk 0:01:25.7]} 21. Bb2 {[%clk
0:01:41.5]} 21... Qb6 {[%clk 0:01:17]} 22. Nd2 {[%clk 0:01:23.5]} 22... d5
{[%clk 0:01:06]} 23. exd5 {[%clk 0:01:19.2]} 23... Nxd5 {[%clk 0:01:04.5]} 24.
Be4 {[%clk 0:01:13]} 24... Nf4 {[%clk 0:00:55.4]} 25. Qe1 {[%clk 0:01:05.3]}
25... Rd8 {[%clk 0:00:42.4]} 26. Bxb7 {[%clk 0:00:59.7]} 26... Qxb7 {[%clk
0:00:31.7]} 27. Ne4 {[%clk 0:00:55.4]} 27... f5 {[%clk 0:00:27.5]} 28. Nc5
{[%clk 0:00:54.7]} 28... Qxg2# {[%clk 0:00:26.5]} 0-1

[Event "Betsys MČR v online bleskovém šachu 2021"]
[Site "Chess.com"]
[Date "2021.04.17"]
[Round "2"]
[White "Rubinus"]
[Black "Lisak007"]
[Result "1-0"]
[WhiteElo "2140"]
[BlackElo "1782"]
[TimeControl "180+1"]
[EndTime "9:16:17 PDT"]
[Termination "Uživatel Rubinus zvítězil po vzdání soupeře"]

1. e4 {[%clk 0:02:59.7]} 1... c5 {[%clk 0:02:59.6]} 2. Nf3 {[%clk 0:02:58.9]}
2... Nc6 {[%clk 0:02:59.7]} 3. d4 {[%clk 0:02:59]} 3... cxd4 {[%clk 0:03:00.1]}
4. Nxd4 {[%clk 0:02:59.3]} 4... Nf6 {[%clk 0:03:00.8]} 5. Nc3 {[%clk 0:02:58.6]}
5... e6 {[%clk 0:03:01.2]} 6. Ndb5 {[%clk 0:02:56]} 6... Bb4 {[%clk 0:03:00.8]}
7. a3 {[%clk 0:02:54]} 7... Bxc3+ {[%clk 0:02:59.9]} 8. Nxc3 {[%clk 0:02:53.6]}
8... d5 {[%clk 0:03:00.1]} 9. exd5 {[%clk 0:02:53.3]} 9... exd5 {[%clk
0:03:00.3]} 10. Nb5 {[%clk 0:02:46.2]} 10... O-O {[%clk 0:02:53.5]} 11. Be2
{[%clk 0:02:37.4]} 11... a6 {[%clk 0:02:53.3]} 12. Nd4 {[%clk 0:02:36]} 12...
Qb6 {[%clk 0:02:43.2]} 13. c3 {[%clk 0:02:30.5]} 13... Nxd4 {[%clk 0:02:32.5]}
14. Qxd4 {[%clk 0:02:27.5]} 14... Qxd4 {[%clk 0:02:28.1]} 15. cxd4 {[%clk
0:02:27.5]} 15... Bf5 {[%clk 0:02:26.9]} 16. Bg5 {[%clk 0:02:22.8]} 16... Ne4
{[%clk 0:02:25.9]} 17. Be3 {[%clk 0:02:19.6]} 17... Rac8 {[%clk 0:02:20.2]} 18.
f3 {[%clk 0:02:15.4]} 18... Nd6 {[%clk 0:02:16.6]} 19. Kd2 {[%clk 0:02:12.6]}
19... Nc4+ {[%clk 0:02:16.1]} 20. Bxc4 {[%clk 0:02:08.9]} 20... dxc4 {[%clk
0:02:14.3]} 21. Kc3 {[%clk 0:02:07.8]} 21... b5 {[%clk 0:02:14.2]} 22. Rhe1
{[%clk 0:01:59.7]} 22... Rfe8 {[%clk 0:02:09.5]} 23. Bf4 {[%clk 0:01:58.6]}
23... f6 {[%clk 0:02:05.8]} 24. Bd6 {[%clk 0:01:51]} 24... Kf7 {[%clk
0:02:03.2]} 25. g4 {[%clk 0:01:49.6]} 25... Bd7 {[%clk 0:01:53.9]} 26. Bc5
{[%clk 0:01:47.3]} 26... Bc6 {[%clk 0:01:48.9]} 27. f4 {[%clk 0:01:46.4]} 27...
Rxe1 {[%clk 0:01:40.5]} 28. Rxe1 {[%clk 0:01:44.9]} 28... Re8 {[%clk 0:01:40.4]}
29. Rxe8 {[%clk 0:01:44]} 29... Kxe8 {[%clk 0:01:40.3]} 30. Kb4 {[%clk
0:01:44.1]} 30... Kd7 {[%clk 0:01:38.1]} 31. Ka5 {[%clk 0:01:44.3]} 31... Bb7
{[%clk 0:01:38.4]} 32. Kb6 {[%clk 0:01:44.4]} 32... Bc8 {[%clk 0:01:38.6]} 33.
Bf8 {[%clk 0:01:42.7]} 33... g6 {[%clk 0:01:37.9]} 34. g5 {[%clk 0:01:37.7]}
34... fxg5 {[%clk 0:01:36.4]} 35. fxg5 {[%clk 0:01:36.8]} 35... Ke6 {[%clk
0:01:26.4]} 36. Kc7 {[%clk 0:01:34.8]} 36... Bd7 {[%clk 0:01:25.9]} 37. Kb7
{[%clk 0:01:33.2]} 37... Kd5 {[%clk 0:01:24.4]} 38. Bg7 {[%clk 0:01:31.1]} 38...
Ke4 {[%clk 0:01:21.1]} 39. Kxa6 {[%clk 0:01:29.2]} 39... Kd3 {[%clk 0:01:21.1]}
40. Kb6 {[%clk 0:01:27.6]} 40... Kc2 {[%clk 0:01:20.6]} 41. d5 {[%clk
0:01:27.2]} 41... Kd3 {[%clk 0:01:18.6]} 42. Kc7 {[%clk 0:01:26.9]} 42... Bf5
{[%clk 0:01:16.7]} 43. d6 {[%clk 0:01:26]} 43... Ke4 {[%clk 0:01:14.5]} 44. d7
{[%clk 0:01:25.8]} 44... Bxd7 {[%clk 0:01:13.9]} 45. Kxd7 {[%clk 0:01:26.1]}
45... Kf4 {[%clk 0:01:14]} 46. Bh6 {[%clk 0:01:23.6]} 46... Kf5 {[%clk
0:01:13.8]} 47. h4 {[%clk 0:01:18.1]} 47... Kg4 {[%clk 0:01:13.5]} 48. Kd6
{[%clk 0:01:12]} 48... Kxh4 {[%clk 0:01:13.3]} 49. Kc5 {[%clk 0:01:11.7]} 1-0

[Event "Betsys MČR v online bleskovém šachu 2021"]
[Site "Chess.com"]
[Date "2021.04.17"]
[Round "2"]
[White "TarantAnk"]
[Black "Michal5"]
[Result "1-0"]
[WhiteElo "1731"]
[BlackElo "1227"]
[TimeControl "180+1"]
[EndTime "9:16:17 PDT"]
[Termination "Uživatel TarantAnk zvítězil na čas"]

1. e4 {[%clk 0:03:00.9]} 1... c5 {[%clk 0:02:58.3]} 2. Nf3 {[%clk 0:03:01.2]}
2... d6 {[%clk 0:02:58]} 3. Nc3 {[%clk 0:03:01.7]} 3... Nf6 {[%clk 0:02:57.2]}
4. d4 {[%clk 0:03:01.9]} 4... cxd4 {[%clk 0:02:56.7]} 5. Nxd4 {[%clk 0:03:01.8]}
5... g6 {[%clk 0:02:56.5]} 6. Bc4 {[%clk 0:03:01.8]} 6... Bg7 {[%clk 0:02:56]}
7. Bg5 {[%clk 0:02:59.2]} 7... O-O {[%clk 0:02:55.5]} 8. Qd2 {[%clk 0:02:59.1]}
8... Nc6 {[%clk 0:02:48.7]} 9. Nxc6 {[%clk 0:02:53.8]} 9... bxc6 {[%clk
0:02:46.2]} 10. Bh6 {[%clk 0:02:54.1]} 10... Rb8 {[%clk 0:02:37.3]} 11. Bxg7
{[%clk 0:02:47.3]} 11... Kxg7 {[%clk 0:02:36.9]} 12. b3 {[%clk 0:02:46]} 12...
Qb6 {[%clk 0:02:25.6]} 13. O-O {[%clk 0:02:40.9]} 13... Ba6 {[%clk 0:02:24]} 14.
Bxa6 {[%clk 0:02:38.8]} 14... Qxa6 {[%clk 0:02:23.8]} 15. a4 {[%clk 0:02:37.4]}
15... Qc8 {[%clk 0:02:19.2]} 16. Rad1 {[%clk 0:02:35.4]} 16... Qc7 {[%clk
0:02:17.5]} 17. f4 {[%clk 0:02:33.4]} 17... Nd7 {[%clk 0:02:10.9]} 18. f5 {[%clk
0:02:31.8]} 18... Rfc8 {[%clk 0:02:06.2]} 19. Qg5 {[%clk 0:02:27.4]} 19... Ne5
{[%clk 0:02:03.8]} 20. h4 {[%clk 0:02:12.6]} 20... h6 {[%clk 0:01:53.3]} 21. Qg3
{[%clk 0:02:09.5]} 21... Rh8 {[%clk 0:01:52.5]} 22. Rd2 {[%clk 0:01:59.2]} 22...
Rbf8 {[%clk 0:01:51.2]} 23. Rdf2 {[%clk 0:01:56.6]} 23... Qb6 {[%clk 0:01:37.4]}
24. Kh1 {[%clk 0:01:46.6]} 24... Qd4 {[%clk 0:01:30]} 25. f6+ {[%clk 0:01:38.7]}
25... exf6 {[%clk 0:01:27.3]} 26. Rxf6 {[%clk 0:01:38.2]} 26... Qd2 {[%clk
0:01:10.5]} 27. Rd1 {[%clk 0:01:27.9]} 27... Qxc2 {[%clk 0:00:33.9]} 28. Rdxd6
{[%clk 0:01:26.8]} 28... Qc1+ {[%clk 0:00:16.1]} 29. Kh2 {[%clk 0:01:24.6]}
29... Qc2 {[%clk 0:00:06.4]} 30. Qxe5 {[%clk 0:01:22.2]} 1-0